fUST/lending_fUST_20250903
["ID","MTS","AMOUNT","RATE_DAILY","PERIOD"]
[383106298,1756848632734,-480.0,0.00013698,2]
[383106299,1756848632744,-480.0,0.00013698,2]
[383106300,1756848632755,-480.0,0.00013698,2]
[383106301,1756848632767,-877.52,0.00013698,2]
[383106302,1756848632779,-480.0,0.00013698,2]
[383106303,1756848632790,-1341.02,0.00013698,2]
[383106304,1756848632801,-480.0,0.00013698,2]
[383106305,1756848632813,-480.0,0.00013698,2]
[383106306,1756848632825,-480.0,0.00013698,2]
[383106307,1756848632837,-480.0,0.00013698,2]
[383106308,1756848632848,-480.0,0.00013698,2]
[383106309,1756848632858,-480.0,0.00013698,2]
[383106310,1756848632869,-480.0,0.00013698,2]
[383106311,1756848632881,-698.34,0.00013698,2]
[383106312,1756848632893,-480.0,0.00013698,2]
[383106313,1756848632906,-320.17,0.00013698,2]
[383106314,1756848632918,-194.02,0.00013698,2]
[383106315,1756848632930,-480.0,0.00013698,2]
[383106316,1756848632942,-480.0,0.00013698,2]
[383106317,1756848632955,-480.0,0.00013698,2]
[383106318,1756848632964,-2448.38,0.00013698,2]
[383106319,1756848632976,-615.60243577,0.00013698,2]
[383106320,1756848632986,-480.0,0.00013698,2]
[383106321,1756848632997,-591.58,0.00013698,2]
[383106322,1756848633007,-480.0,0.00013698,2]
[383106323,1756848633018,-480.0,0.00013698,2]
[383106324,1756848633029,-480.0,0.00013698,2]
[383106325,1756848633039,-480.0,0.00013698,2]
[383106326,1756848633052,-480.0,0.00013698,2]
[383106327,1756848633064,-480.0,0.00013698,2]
[383106328,1756848633076,-829.79,0.00013698,2]
[383106329,1756848633086,-480.0,0.00013698,2]
[383106330,1756848633096,-480.0,0.00013698,2]
[383106331,1756848633107,-480.0,0.00013698,2]
[383106332,1756848633117,-798.24,0.00013698,2]
[383106333,1756848633127,-322.68,0.00013698,2]
[383106334,1756848633138,-480.0,0.00013698,2]
[383106335,1756848633150,-1250.76,0.00013698,2]
[383106336,1756848633161,-206.06,0.00013698,2]
[383106337,1756848633172,-966.95612324,0.00013698,2]
[383106338,1756848633190,-462.215,0.00013698,2]
[383106339,1756848633202,-31.77887676,0.00013698,2]
[383106340,1756848633214,-899.1,0.00013698,2]
[383106341,1756848633225,-33.655541,0.00013698,2]
[383106351,1756848637977,-446.344459,0.00013698,2]
[383106352,1756848637987,-480.0,0.00013698,2]
[383106353,1756848637997,-265.00000006,0.00013698,2]
[383106354,1756848638006,-480.0,0.00013698,2]
[383106355,1756848638016,-1430.33488148,0.00013698,2]
[383106356,1756848638028,-256.69511852,0.00013698,2]
[383106357,1756848638037,-345.30487988,0.00013698,2]
[383106927,1756848646025,-77.29951741,0.00013698,2]
[383106928,1756848646036,-1000.0,0.00013698,2]
[383106929,1756848646045,-1000.0,0.00013698,2]
[383106930,1756848646054,-1000.0,0.00013698,2]
[383106931,1756848646064,-1000.0,0.00013698,2]
[383106932,1756848646073,-1000.0,0.00013698,2]
[383106933,1756848646083,-480.0,0.00013698,2]
[383106934,1756848646092,-480.0,0.00013698,2]
[383106935,1756848646101,-480.0,0.00013698,2]
[383106936,1756848646110,-577.7,0.00013698,2]
[383106937,1756848646120,-480.0,0.00013698,2]
[383106938,1756848646129,-534.25794929,0.00013698,2]
[383106939,1756848646139,-1614.86,0.00013698,2]
[383106940,1756848646149,-480.0,0.00013698,2]
[383106941,1756848646158,-480.0,0.00013698,2]
[383106942,1756848646167,-353.98568339,0.00013698,2]
[383107091,1756849266283,176.37294467,0.00013327,2]
[383107092,1756849349890,798.15871992,0.00013389,2]
[383107093,1756849352159,3189.44224478,0.00013389,2]
[383107094,1756849487954,176.37294467,0.00013327,2]
[383107108,1756849650096,-688.24600987,0.00013462,2]
[383107109,1756849650117,-176.37294467,0.00013598,2]
[383107110,1756849650139,-588.88809724,0.00013598,2]
[383107111,1756849650159,-240.0,0.00013696,2]
[383107112,1756849650180,-204.34208241,0.00013697,2]
[383107113,1756849650202,-192.34400674,0.00013697,2]
[383107121,1756849777955,352.4268521,0.00013013,2]
[383107155,1756849832182,-2704.40140676,0.0001356,2]
[383107156,1756849832192,-300.0,0.00013696,2]
[383107157,1756849832202,-307.65599326,0.00013697,2]
[383107158,1756849832212,-528.24130685,0.00013697,2]
[383107159,1756849832221,-165.99479489,0.00013697,2]
[383107160,1756849832231,-500.0,0.00013697,2]
[383107161,1756849832240,-500.0,0.00013697,2]
[383107162,1756849832249,-500.0,0.00013697,2]
[383107163,1756849832259,-202.50931176,0.00013697,2]
[383107164,1756849832270,-295.39,0.00013698,2]
[383107165,1756849832280,-2107.3906634,0.00013698,2]
[383107166,1756849832289,-480.0,0.00013698,2]
[383107167,1756849832298,-480.0,0.00013698,2]
[383107168,1756849832307,-518.02195018,0.00013698,2]
[383107169,1756849832317,-480.0,0.00013698,2]
[383107171,1756849832326,-480.0,0.00013698,2]
[383107172,1756849832335,-480.0,0.00013698,2]
[383107173,1756849832346,-485.31157402,0.00013698,2]
[383107174,1756849832356,-480.0,0.00013698,2]
[383107175,1756849832368,-480.0,0.00013698,2]
[383107176,1756849832379,-480.0,0.00013698,2]
[383107177,1756849832389,-480.0,0.00013698,2]
[383107178,1756849832399,-480.0,0.00013698,2]
[383107179,1756849832410,-480.0,0.00013698,2]
[383107180,1756849832420,-296.00705477,0.00013698,2]
[383107181,1756849832430,-480.0,0.00013698,2]
[383107182,1756849832439,-480.0,0.00013698,2]
[383107183,1756849832449,-416.68614184,0.00013698,2]
[383107184,1756849832458,-480.0,0.00013698,2]
[383107185,1756849832468,-480.0,0.00013698,2]
[383107186,1756849832478,-480.0,0.00013698,2]
[383107187,1756849832487,-151.0,0.00013698,2]
[383107188,1756849832497,-151.0,0.00013698,2]
[383107189,1756849832508,-207.153874,0.00013698,2]
[383107190,1756849832517,-480.0,0.00013698,2]
[383107191,1756849832527,-278.47138656,0.00013698,2]
[383107192,1756849832537,-480.0,0.00013698,2]
[383107193,1756849832547,-236.05,0.00013698,2]
[383107194,1756849832556,-480.0,0.00013698,2]
[383107195,1756849832565,-480.0,0.00013698,2]
[383107196,1756849832575,-480.0,0.00013698,2]
[383107197,1756849832584,-480.0,0.00013698,2]
[383107198,1756849832594,-480.0,0.00013698,2]
[383107199,1756849832604,-480.0,0.00013698,2]
[383107200,1756849832613,-480.0,0.00013698,2]
[383107201,1756849832623,-480.0,0.00013698,2]
[383107202,1756849832633,-480.0,0.00013698,2]
[383107203,1756849832643,-480.0,0.00013698,2]
[383107204,1756849832653,-480.0,0.00013698,2]
[383107205,1756849832663,-151.0,0.00013698,2]
[383107206,1756849832673,-480.0,0.00013698,2]
[383107207,1756849832683,-480.0,0.00013698,2]
[383107208,1756849832693,-480.0,0.00013698,2]
[383107209,1756849832702,-480.0,0.00013698,2]
[383107210,1756849832712,-480.0,0.00013698,2]
[383107211,1756849832722,-196.65,0.00013698,2]
[383107212,1756849832731,-480.0,0.00013698,2]
[383107213,1756849832740,-861.64,0.00013698,2]
[383107214,1756849832751,-480.0,0.00013698,2]
[383107215,1756849832760,-480.0,0.00013698,2]
[383107216,1756849832769,-714.78,0.00013698,2]
[383107217,1756849832779,-447.65,0.00013698,2]
[383107218,1756849832789,-1503.0,0.00013698,2]
[383107219,1756849832798,-480.0,0.00013698,2]
[383107220,1756849832808,-709.14,0.00013698,2]
[383107221,1756849832817,-480.0,0.00013698,2]
[383107222,1756849832826,-266.26669539,0.00013698,2]
[383107223,1756849832836,-480.0,0.00013698,2]
[383107224,1756849832846,-488.58,0.00013698,2]
[383107225,1756849832855,-500.0,0.00013698,2]
[383107226,1756849832864,-480.0,0.00013698,2]
[383107227,1756849832874,-480.0,0.00013698,2]
[383107228,1756849832883,-480.0,0.00013698,2]
[383107229,1756849832892,-505.59,0.00013698,2]
[383107230,1756849832902,-480.0,0.00013698,2]
[383107231,1756849832911,-480.0,0.00013698,2]
[383107232,1756849832921,-480.0,0.00013698,2]
[383107233,1756849832931,-480.0,0.00013698,2]
[383107234,1756849832940,-480.0,0.00013698,2]
[383107235,1756849832950,-480.0,0.00013698,2]
[383107236,1756849832959,-480.0,0.00013698,2]
[383107237,1756849832969,-480.0,0.00013698,2]
[383107238,1756849832978,-480.0,0.00013698,2]
[383107239,1756849832987,-480.0,0.00013698,2]
[383107240,1756849832997,-524.75,0.00013698,2]
[383107241,1756849833007,-480.0,0.00013698,2]
[383107242,1756849833016,-405.45775409,0.00013698,2]
[383107243,1756849833026,-957.74,0.00013698,2]
[383107244,1756849833035,-480.0,0.00013698,2]
[383107245,1756849833044,-480.0,0.00013698,2]
[383107246,1756849833055,-480.0,0.00013698,2]
[383107247,1756849833067,-1872.53,0.00013698,2]
[383107248,1756849833078,-480.0,0.00013698,2]
[383107249,1756849833088,-1341.16,0.00013698,2]
[383107250,1756849833098,-480.0,0.00013698,2]
[383107251,1756849833110,-480.0,0.00013698,2]
[383107252,1756849833120,-480.0,0.00013698,2]
[383107253,1756849833130,-965.89,0.00013698,2]
[383107254,1756849833141,-480.0,0.00013698,2]
[383107255,1756849833151,-480.0,0.00013698,2]
[383107256,1756849833161,-480.0,0.00013698,2]
[383107257,1756849833170,-480.0,0.00013698,2]
[383107258,1756849833180,-480.0,0.00013698,2]
[383107259,1756849833190,-480.0,0.00013698,2]
[383107260,1756849833199,-480.0,0.00013698,2]
[383107261,1756849833209,-480.0,0.00013698,2]
[383107262,1756849833219,-480.0,0.00013698,2]
[383107263,1756849833229,-480.0,0.00013698,2]
[383107264,1756849833239,-1056.63,0.00013698,2]
[383107265,1756849833248,-480.0,0.00013698,2]
[383107266,1756849833260,-151.0,0.00013698,2]
[383107267,1756849833270,-480.0,0.00013698,2]
[383107268,1756849833279,-480.0,0.00013698,2]
[383107269,1756849833289,-480.0,0.00013698,2]
[383107270,1756849833299,-480.0,0.00013698,2]
[383107271,1756849833308,-480.0,0.00013698,2]
[383107272,1756849833318,-795.05,0.00013698,2]
[383107273,1756849833327,-480.0,0.00013698,2]
[383107274,1756849833337,-1678.23,0.00013698,2]
[383107275,1756849833347,-480.0,0.00013698,2]
[383107276,1756849833357,-480.0,0.00013698,2]
[383107277,1756849833366,-480.0,0.00013698,2]
[383107278,1756849833376,-795.21,0.00013698,2]
[383107279,1756849833386,-713.79,0.00013698,2]
[383107280,1756849833396,-480.0,0.00013698,2]
[383107281,1756849833406,-480.0,0.00013698,2]
[383107282,1756849833415,-480.0,0.00013698,2]
[383107283,1756849833425,-1198.64,0.00013698,2]
[383107284,1756849833435,-480.0,0.00013698,2]
[383107285,1756849833445,-480.0,0.00013698,2]
[383107286,1756849833454,-1805.19,0.00013698,2]
[383107287,1756849833464,-480.0,0.00013698,2]
[383107288,1756849833474,-480.0,0.00013698,2]
[383107289,1756849833483,-480.0,0.00013698,2]
[383107290,1756849833493,-553.63,0.00013698,2]
[383107291,1756849833503,-1577.68,0.00013698,2]
[383107292,1756849833512,-480.0,0.00013698,2]
[383107293,1756849833522,-480.0,0.00013698,2]
[383107294,1756849833531,-480.0,0.00013698,2]
[383107295,1756849833541,-480.0,0.00013698,2]
[383107296,1756849833550,-480.0,0.00013698,2]
[383107297,1756849833559,-151.0,0.00013698,2]
[383107298,1756849833568,-2689.35,0.00013698,2]
[383107299,1756849833578,-151.0,0.00013698,2]
[383107300,1756849833588,-151.0,0.00013698,2]
[383107301,1756849833597,-480.0,0.00013698,2]
[383107302,1756849833606,-480.0,0.00013698,2]
[383107303,1756849833616,-480.0,0.00013698,2]
[383107304,1756849833625,-151.0,0.00013698,2]
[383107305,1756849833634,-151.0,0.00013698,2]
[383107306,1756849833644,-151.0,0.00013698,2]
[383107307,1756849833653,-151.0,0.00013698,2]
[383107308,1756849833663,-151.0,0.00013698,2]
[383107309,1756849833672,-480.0,0.00013698,2]
[383107310,1756849833682,-480.0,0.00013698,2]
[383107311,1756849833691,-151.0,0.00013698,2]
[383107312,1756849833701,-151.0,0.00013698,2]
[383107313,1756849833710,-151.0,0.00013698,2]
[383107314,1756849833720,-151.0,0.00013698,2]
[383107315,1756849833730,-151.0,0.00013698,2]
[383107316,1756849833740,-151.0,0.00013698,2]
[383107317,1756849833750,-264.645396,0.00013698,2]
[383107318,1756849833759,-480.0,0.00013698,2]
[383107319,1756849833768,-500.0,0.00013698,2]
[383107320,1756849833776,-926.485145,0.00013699,2]
[383107321,1756849833786,-176.37294467,0.00013872,2]
[383107322,1756849833795,-975.0,0.00013936,2]
[383107323,1756849833804,-2153.0,0.00013936,2]
[383107324,1756849833813,-632.0,0.00013936,2]
[383107325,1756849833822,-500.0,0.00013968,2]
[383107326,1756849833831,-194.09987544,0.00013968,2]
[383107327,1756849833840,-500.0,0.00013968,2]
[383107328,1756849833850,-500.0,0.00013968,2]
[383107329,1756849833859,-500.0,0.00013968,2]
[383107330,1756849833869,-642.40881764,0.00013968,2]
[383107331,1756849833879,-500.0,0.00013968,2]
[383107332,1756849833889,-8192.76027357,0.00013971,2]
[383107333,1756849833899,-600.0,0.00013971,2]
[383107334,1756849833909,-1918.17922375,0.00013971,2]
[383107335,1756849833919,-1084.9,0.00013971,2]
[383107336,1756849833929,-500.0,0.00013972,2]
[383107337,1756849833939,-151.0,0.00013972,2]
[383107338,1756849833948,-151.0,0.00013972,2]
[383107339,1756849833957,-151.0,0.00013972,2]
[383107340,1756849833968,-480.0,0.00013972,2]
[383107341,1756849833977,-480.0,0.00013972,2]
[383107342,1756849833987,-480.0,0.00013972,2]
[383107343,1756849833997,-480.0,0.00013972,2]
[383107344,1756849834006,-480.0,0.00013972,2]
[383107345,1756849834015,-480.0,0.00013972,2]
[383107346,1756849834024,-480.0,0.00013972,2]
[383107347,1756849834033,-480.0,0.00013972,2]
[383107348,1756849834043,-495.94,0.00013972,2]
[383107349,1756849834052,-480.0,0.00013972,2]
[383107350,1756849834062,-480.0,0.00013972,2]
[383107351,1756849834071,-480.0,0.00013972,2]
[383107352,1756849834081,-480.0,0.00013972,2]
[383107353,1756849834090,-480.0,0.00013972,2]
[383107354,1756849834099,-224.08,0.00013972,2]
[383107355,1756849834108,-252.20116039,0.00013972,2]
[383107356,1756849834118,-480.0,0.00013972,2]
[383107357,1756849834127,-480.0,0.00013972,2]
[383107358,1756849834136,-480.0,0.00013972,2]
[383107359,1756849834146,-480.0,0.00013972,2]
[383107360,1756849834154,-480.0,0.00013972,2]
[383107361,1756849834163,-861.64,0.00013972,2]
[383107362,1756849834172,-480.0,0.00013972,2]
[383107363,1756849834181,-414.38807977,0.00013972,2]
[383107364,1756849834191,-714.78,0.00013972,2]
[383107365,1756849834200,-1503.0,0.00013972,2]
[383107366,1756849834209,-480.0,0.00013972,2]
[383107367,1756849834218,-709.14,0.00013972,2]
[383107368,1756849834227,-480.0,0.00013972,2]
[383107369,1756849834236,-488.58,0.00013972,2]
[383107370,1756849834245,-480.0,0.00013972,2]
[383107371,1756849834254,-480.0,0.00013972,2]
[383107372,1756849834264,-505.59,0.00013972,2]
[383107373,1756849834273,-480.0,0.00013972,2]
[383107374,1756849834283,-480.0,0.00013972,2]
[383107375,1756849834292,-480.0,0.00013972,2]
[383107376,1756849834302,-480.0,0.00013972,2]
[383107377,1756849834312,-480.0,0.00013972,2]
[383107378,1756849834322,-347.91397876,0.00013972,2]
[383107402,1756849837974,-500.0,0.00013968,2]
[383107404,1756849837984,-138.55,0.00013968,2]
[383107410,1756849838031,-361.45,0.00013968,2]
[383107412,1756849838041,-132.08602124,0.00013972,2]
[383107414,1756849838050,-480.0,0.00013972,2]
[383107416,1756849838062,-480.0,0.00013972,2]
[383107418,1756849838071,-480.0,0.00013972,2]
[383107420,1756849838081,-480.0,0.00013972,2]
[383107423,1756849838090,-524.75,0.00013972,2]
[383107426,1756849838099,-480.0,0.00013972,2]
[383107428,1756849838108,-957.74,0.00013972,2]
[383107430,1756849838118,-480.0,0.00013972,2]
[383107432,1756849838127,-480.0,0.00013972,2]
[383107434,1756849838137,-480.0,0.00013972,2]
[383107436,1756849838146,-878.10579001,0.00013972,2]
[383107439,1756849838158,-567.34336685,0.00013972,2]
[383107441,1756849838169,-427.08084314,0.00013972,2]
[383107443,1756849838178,-480.0,0.00013972,2]
[383107445,1756849838187,-231.11915696,0.00013972,2]
[383107447,1756849838198,-1110.04084304,0.00013972,2]
[383107448,1756849838207,-480.0,0.00013972,2]
[383107449,1756849838217,-318.12551804,0.00013972,2]
[383107450,1756849838228,-161.87448196,0.00013972,2]
[383107451,1756849838237,-480.0,0.00013972,2]
[383107452,1756849838246,-565.12551804,0.00013972,2]
[383107453,1756849838257,-295.24084926,0.00013972,2]
[383107612,1756849840110,-480.0,0.00013698,2]
[383107614,1756849840120,-1000.0,0.00013828,2]
[383107616,1756849840130,-105.5236327,0.00013972,2]
[383107618,1756849840140,-480.0,0.00013972,2]
[383107620,1756849840151,-534.38751074,0.00013972,2]
[383107622,1756849840160,-480.0,0.00013972,2]
[383107624,1756849840170,-480.0,0.00013972,2]
[383107626,1756849840179,-480.0,0.00013972,2]
[383107628,1756849840189,-480.0,0.00013972,2]
[383107630,1756849840198,-308.45854516,0.00013972,2]
[383107632,1756849840207,-480.0,0.00013972,2]
[383107634,1756849840216,-480.0,0.00013972,2]
[383107636,1756849840226,-480.0,0.00013972,2]
[383107638,1756849840235,-1056.63,0.00013972,2]
[383107640,1756849840245,-480.0,0.00013972,2]
[383107642,1756849840254,-265.2503114,0.00013972,2]
[383107928,1756849843097,-214.7496886,0.00013972,2]
[383107930,1756849843107,-480.0,0.00013972,2]
[383107932,1756849843116,-321.86667544,0.00013972,2]
[383107934,1756849843128,-158.13332456,0.00013972,2]
[383107936,1756849843137,-480.0,0.00013972,2]
[383107938,1756849843147,-480.0,0.00013972,2]
[383107940,1756849843157,-795.05,0.00013972,2]
[383107942,1756849843167,-480.0,0.00013972,2]
[383107944,1756849843176,-1678.23,0.00013972,2]
[383107946,1756849843186,-480.0,0.00013972,2]
[383107949,1756849843195,-480.0,0.00013972,2]
[383107952,1756849843205,-480.0,0.00013972,2]
[383107955,1756849843214,-795.21,0.00013972,2]
[383107957,1756849843223,-713.79,0.00013972,2]
[383107959,1756849843233,-480.0,0.00013972,2]
[383107961,1756849843242,-480.0,0.00013972,2]
[383107963,1756849843251,-1198.64,0.00013972,2]
[383107966,1756849843261,-480.0,0.00013972,2]
[383107968,1756849843270,-480.0,0.00013972,2]
[383107970,1756849843279,-1805.19,0.00013972,2]
[383107972,1756849843288,-480.0,0.00013972,2]
[383107974,1756849843298,-553.63,0.00013972,2]
[383107976,1756849843306,-1577.68,0.00013972,2]
[383107978,1756849843316,-480.0,0.00013972,2]
[383107980,1756849843325,-480.0,0.00013972,2]
[383107982,1756849843333,-480.0,0.00013972,2]
[383107983,1756849843343,-480.0,0.00013972,2]
[383107986,1756849843352,-2202.38350892,0.00013972,2]
[383107988,1756849843364,-486.96649108,0.00013972,2]
[383107990,1756849843374,-54.22823728,0.00013972,2]
[383108281,1756849846162,-425.77176272,0.00013972,2]
[383108283,1756849846172,-480.0,0.00013972,2]
[383108285,1756849846182,-480.0,0.00013972,2]
[383108287,1756849846191,-264.17963581,0.00013972,2]
[383108289,1756849846200,-480.0,0.00013972,2]
[383108291,1756849846209,-500.0,0.00013972,2]
[383108293,1756849846219,-1328.21981783,0.00014012,2]
[383108300,1756849846276,-3808.74243182,0.00014012,2]
[383111435,1756850455432,300.0,0.0001329,2]
[383111444,1756850676199,298.71456792,0.00013327,2]
[383111465,1756850829117,-176.37294467,0.00013598,2]
[383111466,1756850829138,-515.27708505,0.00013598,2]
[383111467,1756850829160,-352.0,0.00013696,2]
[383111468,1756850829181,-300.0,0.00013696,2]
[383111469,1756850829203,-500.0,0.00013697,2]
[383111470,1756850829225,-336.2566721,0.00013697,2]
[383111471,1756850829247,-500.0,0.00013697,2]
[383111472,1756850829269,-227.62917887,0.00013697,2]
[383111473,1756850829289,-286.89705303,0.00013697,2]
[383111474,1756850829311,-235.46870426,0.00013697,2]
[383111475,1756850829333,-500.0,0.00013697,2]
[383111476,1756850829355,-66.94423963,0.00013697,2]
[383111534,1756851032411,-176.3729447,0.00013598,2]
[383111536,1756851032421,-104.4395156,0.00013598,2]
[383111542,1756851032473,-419.55265741,0.00013598,2]
[383111544,1756851032482,-300.0,0.00013679,2]
[383111546,1756851032492,-505.259,0.0001368,2]
[383111548,1756851032502,-2000.0,0.0001368,2]
[383111550,1756851032513,-2000.0,0.0001368,2]
[383111552,1756851032524,-2000.0,0.0001368,2]
[383111555,1756851032534,-2000.0,0.0001368,2]
[383111559,1756851032544,-2000.0,0.0001368,2]
[383111563,1756851032555,-281.24688496,0.00013697,2]
[383111566,1756851032564,-190.99849122,0.00013697,2]
[383111568,1756851032574,-500.0,0.00013697,2]
[383111570,1756851032584,-500.0,0.00013697,2]
[383111572,1756851032593,-500.0,0.00013697,2]
[383111574,1756851032603,-500.0,0.00013697,2]
[383111577,1756851032613,-500.0,0.00013697,2]
[383111579,1756851032622,-500.0,0.00013697,2]
[383111581,1756851032632,-480.0,0.00013698,2]
[383111583,1756851032642,-480.0,0.00013698,2]
[383111586,1756851032659,-480.0,0.00013698,2]
[383111588,1756851032672,-480.0,0.00013698,2]
[383111590,1756851032683,-480.0,0.00013698,2]
[383111592,1756851032693,-480.0,0.00013698,2]
[383111595,1756851032704,-480.0,0.00013698,2]
[383111597,1756851032714,-480.0,0.00013698,2]
[383111599,1756851032724,-480.0,0.00013698,2]
[383111601,1756851032734,-480.0,0.00013698,2]
[383111603,1756851032744,-480.0,0.00013698,2]
[383111605,1756851032753,-480.0,0.00013698,2]
[383111607,1756851032764,-480.0,0.00013698,2]
[383111609,1756851032774,-480.0,0.00013698,2]
[383111611,1756851032784,-480.0,0.00013698,2]
[383111613,1756851032793,-480.0,0.00013698,2]
[383111615,1756851032806,-480.0,0.00013698,2]
[383111617,1756851032816,-480.0,0.00013698,2]
[383111619,1756851032826,-480.0,0.00013698,2]
[383111621,1756851032836,-480.0,0.00013698,2]
[383111623,1756851032847,-515.77808052,0.00013698,2]
[383111625,1756851032858,-480.0,0.00013698,2]
[383111627,1756851032868,-480.0,0.00013698,2]
[383111629,1756851032879,-480.0,0.00013698,2]
[383111631,1756851032889,-480.0,0.00013698,2]
[383111633,1756851032900,-505.54,0.00013698,2]
[383111635,1756851032911,-480.0,0.00013698,2]
[383111637,1756851032921,-480.0,0.00013698,2]
[383111639,1756851032931,-480.0,0.00013698,2]
[383111641,1756851032942,-480.0,0.00013698,2]
[383111644,1756851032953,-480.0,0.00013698,2]
[383111646,1756851032963,-480.0,0.00013698,2]
[383111647,1756851032974,-528.69,0.00013698,2]
[383111650,1756851032983,-480.0,0.00013698,2]
[383111651,1756851032993,-480.0,0.00013698,2]
[383111653,1756851033003,-480.0,0.00013698,2]
[383111655,1756851033014,-480.0,0.00013698,2]
[383111657,1756851033024,-480.0,0.00013698,2]
[383111659,1756851033034,-480.0,0.00013698,2]
[383111661,1756851033044,-215.80757805,0.00013698,2]
[383111663,1756851033054,-480.0,0.00013698,2]
[383111665,1756851033064,-480.0,0.00013698,2]
[383111667,1756851033074,-480.0,0.00013698,2]
[383111669,1756851033084,-480.0,0.00013698,2]
[383111671,1756851033094,-480.0,0.00013698,2]
[383111673,1756851033104,-789.83,0.00013698,2]
[383111675,1756851033114,-480.0,0.00013698,2]
[383111677,1756851033124,-480.0,0.00013698,2]
[383111679,1756851033134,-480.0,0.00013698,2]
[383111681,1756851033144,-480.0,0.00013698,2]
[383111683,1756851033154,-480.0,0.00013698,2]
[383111685,1756851033164,-480.0,0.00013698,2]
[383111687,1756851033174,-480.0,0.00013698,2]
[383111689,1756851033184,-480.0,0.00013698,2]
[383111691,1756851033193,-480.0,0.00013698,2]
[383111693,1756851033203,-480.0,0.00013698,2]
[383111695,1756851033214,-480.0,0.00013698,2]
[383111697,1756851033224,-480.0,0.00013698,2]
[383111699,1756851033234,-480.0,0.00013698,2]
[383111701,1756851033243,-480.0,0.00013698,2]
[383111703,1756851033253,-480.0,0.00013698,2]
[383111705,1756851033264,-519.17730362,0.00013698,2]
[383111707,1756851033274,-482.92659992,0.00013698,2]
[383111709,1756851033284,-480.0,0.00013698,2]
[383111711,1756851033294,-480.0,0.00013698,2]
[383111713,1756851033304,-480.0,0.00013698,2]
[383111715,1756851033315,-480.0,0.00013698,2]
[383111717,1756851033325,-480.0,0.00013698,2]
[383111719,1756851033335,-480.0,0.00013698,2]
[383111721,1756851033345,-46.08420012,0.00013698,2]
[383111723,1756851033360,-433.91579988,0.00013698,2]
[383111725,1756851033369,-480.0,0.00013698,2]
[383111727,1756851033379,-480.0,0.00013698,2]
[383111729,1756851033389,-480.0,0.00013698,2]
[383111731,1756851033398,-480.0,0.00013698,2]
[383111733,1756851033408,-480.0,0.00013698,2]
[383111735,1756851033418,-480.0,0.00013698,2]
[383111737,1756851033428,-480.0,0.00013698,2]
[383111739,1756851033438,-480.0,0.00013698,2]
[383111741,1756851033448,-480.0,0.00013698,2]
[383111743,1756851033457,-480.0,0.00013698,2]
[383111745,1756851033467,-480.0,0.00013698,2]
[383111747,1756851033477,-480.0,0.00013698,2]
[383111749,1756851033487,-480.0,0.00013698,2]
[383111752,1756851033497,-480.0,0.00013698,2]
[383111753,1756851033506,-480.0,0.00013698,2]
[383111756,1756851033516,-480.0,0.00013698,2]